[Event "Early-Titled-Tuesday-Blitz-January-23-2024"]
[Site "Chess.com"]
[Date "2024.01.23"]
[Round "1"]
[White "tolimachess"]
[Black "starworld123"]
[Result "1-0"]
[WhiteElo "2491"]
[BlackElo "2838"]
[TimeControl "180+1"]
[EndTime "8:08:12 PST"]
[Termination "tolimachess won on time"]

1. e4 {[%clk 0:03:00.9]} 1... c5 {[%clk 0:02:59.4]} 2. Nf3 {[%clk 0:02:58.1]}
2... d6 {[%clk 0:02:57.8]} 3. d4 {[%clk 0:02:58.3]} 3... cxd4 {[%clk 0:02:56.9]}
4. Qxd4 {[%clk 0:02:59.2]} 4... Bd7 {[%clk 0:02:50]} 5. Nc3 {[%clk 0:02:53.8]}
5... Nc6 {[%clk 0:02:50.2]} 6. Qd3 {[%clk 0:02:53.3]} 6... g6 {[%clk 0:02:48.4]}
7. Be2 {[%clk 0:02:43.2]} 7... Bg7 {[%clk 0:02:47.9]} 8. Nd5 {[%clk 0:02:43.3]}
8... Nf6 {[%clk 0:02:46.9]} 9. c3 {[%clk 0:02:41.5]} 9... O-O {[%clk 0:02:46.2]}
10. Bg5 {[%clk 0:02:38.5]} 10... Ne5 {[%clk 0:02:35.5]} 11. Nxe5 {[%clk
0:02:33.8]} 11... dxe5 {[%clk 0:02:36.1]} 12. Nxf6+ {[%clk 0:02:24.2]} 12...
exf6 {[%clk 0:02:35.5]} 13. Be3 {[%clk 0:02:24.6]} 13... Bc6 {[%clk 0:02:25.8]}
14. O-O {[%clk 0:02:17.7]} 14... Qe7 {[%clk 0:02:21.2]} 15. Rad1 {[%clk
0:02:15.3]} 15... Qe6 {[%clk 0:02:08.1]} 16. Qb1 {[%clk 0:01:49.7]} 16... f5
{[%clk 0:02:05.7]} 17. Bf3 {[%clk 0:01:31.2]} 17... fxe4 {[%clk 0:01:51.2]} 18.
Bxe4 {[%clk 0:01:32.1]} 18... Bxe4 {[%clk 0:01:32.2]} 19. Qxe4 {[%clk 0:01:33]}
19... Qxa2 {[%clk 0:01:32.4]} 20. Qxb7 {[%clk 0:01:17.3]} 20... Rfb8 {[%clk
0:01:30.1]} 21. Qf3 {[%clk 0:01:17.3]} 21... Qxb2 {[%clk 0:01:25.1]} 22. Rd7
{[%clk 0:01:16.1]} 22... Qa2 {[%clk 0:01:09.3]} 23. h4 {[%clk 0:00:32]} 23... a5
{[%clk 0:01:01.8]} 24. h5 {[%clk 0:00:31.9]} 24... a4 {[%clk 0:00:50.6]} 25. h6
{[%clk 0:00:19.1]} 25... Bf8 {[%clk 0:00:44.1]} 26. c4 {[%clk 0:00:12.1]} 26...
Qxc4 {[%clk 0:00:36.1]} 27. Rc1 {[%clk 0:00:12.6]} 27... e4 {[%clk 0:00:19.6]}
28. Qf6 {[%clk 0:00:09.3]} 28... Qe6 {[%clk 0:00:17.5]} 29. Qxe6 {[%clk
0:00:09.6]} 29... fxe6 {[%clk 0:00:18.1]} 30. Bf4 {[%clk 0:00:06.6]} 30... Rc8
{[%clk 0:00:14.5]} 31. Rxc8 {[%clk 0:00:06.8]} 31... Rxc8 {[%clk 0:00:15.3]} 32.
Ra7 {[%clk 0:00:07.5]} 32... a3 {[%clk 0:00:14.4]} 33. Be5 {[%clk 0:00:06.2]}
33... Rc1+ {[%clk 0:00:12.2]} 34. Kh2 {[%clk 0:00:06.4]} 34... Rc5 {[%clk
0:00:09.9]} 35. Bg7 {[%clk 0:00:04.5]} 35... Rh5+ {[%clk 0:00:09.5]} 36. Kg3
{[%clk 0:00:04.5]} 36... Bxg7 {[%clk 0:00:06.6]} 37. Rxg7+ {[%clk 0:00:03.7]}
37... Kh8 {[%clk 0:00:05.3]} 38. Ra7 {[%clk 0:00:04.6]} 38... Rxh6 {[%clk
0:00:04]} 39. Rxa3 {[%clk 0:00:04.7]} 39... Rh5 {[%clk 0:00:02.9]} 40. Ra7
{[%clk 0:00:04.8]} 40... Rg5+ {[%clk 0:00:02.4]} 41. Kf4 {[%clk 0:00:05.1]}
41... Rf5+ {[%clk 0:00:03.3]} 42. Kxe4 {[%clk 0:00:05.4]} 42... Kg8 {[%clk
0:00:04.2]} 43. f4 {[%clk 0:00:05.2]} 43... h5 {[%clk 0:00:03.5]} 44. Re7 {[%clk
0:00:04]} 44... Rf6 {[%clk 0:00:02.2]} 45. g3 {[%clk 0:00:04.4]} 45... Kf8
{[%clk 0:00:01.1]} 46. Rh7 {[%clk 0:00:05.1]} 1-0

[Event "Early-Titled-Tuesday-Blitz-January-23-2024"]
[Site "Chess.com"]
[Date "2024.01.23"]
[Round "1"]
[White "jefferyx"]
[Black "masterofpuppets2"]
[Result "1-0"]
[WhiteElo "3013"]
[BlackElo "2520"]
[TimeControl "180+1"]
[EndTime "8:08:14 PST"]
[Termination "jefferyx won by resignation"]

1. e4 {[%clk 0:02:55.3]} 1... c5 {[%clk 0:02:54.4]} 2. Nf3 {[%clk 0:02:55.2]}
2... Nc6 {[%clk 0:02:53.8]} 3. Bb5 {[%clk 0:02:54.8]} 3... e6 {[%clk 0:02:53.9]}
4. O-O {[%clk 0:02:54.3]} 4... Nge7 {[%clk 0:02:53.8]} 5. d4 {[%clk 0:02:54.2]}
5... cxd4 {[%clk 0:02:53.7]} 6. Nxd4 {[%clk 0:02:55.1]} 6... Ng6 {[%clk
0:02:52.9]} 7. Be3 {[%clk 0:02:54.3]} 7... Be7 {[%clk 0:02:52.2]} 8. Be2 {[%clk
0:02:54]} 8... O-O {[%clk 0:02:49.4]} 9. c4 {[%clk 0:02:54.1]} 9... a6 {[%clk
0:02:48.7]} 10. Nc3 {[%clk 0:02:54.2]} 10... Qc7 {[%clk 0:02:48.8]} 11. Qd2
{[%clk 0:02:53]} 11... b6 {[%clk 0:02:38.4]} 12. Rac1 {[%clk 0:02:52.5]} 12...
Nxd4 {[%clk 0:02:16.4]} 13. Bxd4 {[%clk 0:02:53.4]} 13... Bb7 {[%clk 0:02:11.9]}
14. Rfd1 {[%clk 0:02:48]} 14... Rfd8 {[%clk 0:02:10.6]} 15. a3 {[%clk
0:02:13.7]} 15... Rab8 {[%clk 0:02:06.5]} 16. b4 {[%clk 0:02:12.6]} 16... Ne5
{[%clk 0:01:56.6]} 17. Qe3 {[%clk 0:01:59.3]} 17... Bc6 {[%clk 0:01:44.3]} 18.
Qg3 {[%clk 0:01:46.1]} 18... d6 {[%clk 0:01:35.6]} 19. Nd5 {[%clk 0:01:45.8]}
19... Qa7 {[%clk 0:01:18.7]} 20. Nxb6 {[%clk 0:00:57.2]} 20... Rxb6 {[%clk
0:00:59]} 21. c5 {[%clk 0:00:57.6]} 21... dxc5 {[%clk 0:00:46]} 22. Bxe5 {[%clk
0:00:57.8]} 22... f6 {[%clk 0:00:29.6]} 23. Rxd8+ {[%clk 0:00:56.8]} 23... Bxd8
{[%clk 0:00:29.7]} 24. Bd6 {[%clk 0:00:57.7]} 24... cxb4 {[%clk 0:00:26.7]} 25.
axb4 {[%clk 0:00:57.6]} 25... Qd7 {[%clk 0:00:22.9]} 26. e5 {[%clk 0:00:53.5]}
26... Bd5 {[%clk 0:00:15.9]} 27. Bc5 {[%clk 0:00:50.1]} 27... Rc6 {[%clk
0:00:14.6]} 28. b5 {[%clk 0:00:46.9]} 28... axb5 {[%clk 0:00:10.4]} 29. Bxb5
{[%clk 0:00:46.5]} 29... Bc7 {[%clk 0:00:09.6]} 30. Bxc6 {[%clk 0:00:39.8]}
30... Qxc6 {[%clk 0:00:09.4]} 31. Be3 {[%clk 0:00:39.6]} 31... Qd7 {[%clk
0:00:08.4]} 32. Bf4 {[%clk 0:00:38.1]} 32... Bd8 {[%clk 0:00:05.8]} 33. exf6
{[%clk 0:00:37.5]} 33... Bxf6 {[%clk 0:00:06.6]} 34. Be5 {[%clk 0:00:37.3]}
34... Qe7 {[%clk 0:00:03.9]} 35. Rc7 {[%clk 0:00:34.2]} 35... Qf8 {[%clk
0:00:03.5]} 36. Bxf6 {[%clk 0:00:25.8]} 36... Qxf6 {[%clk 0:00:04.4]} 37. Rc8+
{[%clk 0:00:26.2]} 37... Kf7 {[%clk 0:00:04.7]} 38. h3 {[%clk 0:00:26.7]} 38...
h6 {[%clk 0:00:04.6]} 39. Qd6 {[%clk 0:00:19.7]} 39... Kg6 {[%clk 0:00:03.8]}
40. Rf8 {[%clk 0:00:19]} 40... Qg5 {[%clk 0:00:03]} 41. Qg3 {[%clk 0:00:12]}
41... Qxg3 {[%clk 0:00:02.9]} 42. fxg3 {[%clk 0:00:12.9]} 42... h5 {[%clk
0:00:03.5]} 43. Kf2 {[%clk 0:00:12.5]} 43... Kg5 {[%clk 0:00:03.6]} 44. Rf4
{[%clk 0:00:11.9]} 44... Kg6 {[%clk 0:00:02.5]} 45. Rd4 {[%clk 0:00:11.9]} 45...
Kg5 {[%clk 0:00:02.4]} 46. g4 {[%clk 0:00:11.8]} 46... hxg4 {[%clk 0:00:02.2]}
47. Rxg4+ {[%clk 0:00:12.4]} 47... Kf6 {[%clk 0:00:02.2]} 48. Ke3 {[%clk
0:00:13]} 48... g6 {[%clk 0:00:02.1]} 49. h4 {[%clk 0:00:13.4]} 49... Kf5 {[%clk
0:00:02.2]} 50. Rg5+ {[%clk 0:00:13.8]} 50... Kf6 {[%clk 0:00:02.7]} 51. g3
{[%clk 0:00:13.8]} 51... Bc6 {[%clk 0:00:02.7]} 52. Kf4 {[%clk 0:00:14.2]} 52...
Bd5 {[%clk 0:00:03]} 53. Re5 {[%clk 0:00:15.1]} 53... Bc6 {[%clk 0:00:03.3]} 54.
g4 {[%clk 0:00:16]} 54... Bd5 {[%clk 0:00:03.5]} 55. g5+ {[%clk 0:00:16]} 55...
Kf7 {[%clk 0:00:03.6]} 56. Re3 {[%clk 0:00:14.8]} 56... Bc6 {[%clk 0:00:03.5]}
57. Ke5 {[%clk 0:00:15.7]} 57... Bd5 {[%clk 0:00:03.6]} 58. Rc3 {[%clk
0:00:16.6]} 58... Ke7 {[%clk 0:00:03.1]} 59. Rc7+ {[%clk 0:00:17.5]} 59... Kd8
{[%clk 0:00:03.8]} 60. Rg7 {[%clk 0:00:17.7]} 60... Be4 {[%clk 0:00:03.6]} 61.
Kxe4 {[%clk 0:00:17.8]} 61... Ke8 {[%clk 0:00:04.5]} 62. Ke5 {[%clk 0:00:18.1]}
62... Kf8 {[%clk 0:00:05]} 63. Kf6 {[%clk 0:00:17.5]} 63... e5 {[%clk 0:00:05]}
64. Re7 {[%clk 0:00:18.1]} 64... e4 {[%clk 0:00:04.9]} 65. Rxe4 {[%clk 0:00:19]}
1-0

[Event "Early-Titled-Tuesday-Blitz-January-23-2024"]
[Site "Chess.com"]
[Date "2024.01.23"]
[Round "1"]
[White "Happy1712Drummer"]
[Black "bubeliang"]
[Result "0-1"]
[WhiteElo "2437"]
[BlackElo "2787"]
[TimeControl "180+1"]
[EndTime "8:08:15 PST"]
[Termination "bubeliang won on time"]

1. e4 {[%clk 0:03:00.9]} 1... b6 {[%clk 0:02:58.4]} 2. d4 {[%clk 0:03:00.6]}
2... Bb7 {[%clk 0:02:56.2]} 3. Bd3 {[%clk 0:03:01.2]} 3... e6 {[%clk 0:02:56.1]}
4. Qe2 {[%clk 0:03:01.3]} 4... g6 {[%clk 0:02:55.9]} 5. Nf3 {[%clk 0:02:56.2]}
5... Bg7 {[%clk 0:02:49]} 6. c4 {[%clk 0:02:55]} 6... Ne7 {[%clk 0:02:43.5]} 7.
d5 {[%clk 0:02:54.7]} 7... O-O {[%clk 0:02:39.4]} 8. O-O {[%clk 0:02:54.6]} 8...
Re8 {[%clk 0:02:36]} 9. Qc2 {[%clk 0:02:50.7]} 9... Na6 {[%clk 0:02:32]} 10. Bd2
{[%clk 0:02:28.9]} 10... Nc5 {[%clk 0:02:23.3]} 11. Bc3 {[%clk 0:02:28.8]} 11...
f6 {[%clk 0:02:19.2]} 12. b4 {[%clk 0:02:18.4]} 12... Nxd3 {[%clk 0:02:13.9]}
13. Qxd3 {[%clk 0:02:19.3]} 13... e5 {[%clk 0:02:14.4]} 14. Nbd2 {[%clk
0:02:06]} 14... d6 {[%clk 0:02:10.3]} 15. Nb3 {[%clk 0:02:00.8]} 15... h6 {[%clk
0:01:54.7]} 16. c5 {[%clk 0:01:53.3]} 16... a5 {[%clk 0:01:52.5]} 17. cxd6
{[%clk 0:01:43.4]} 17... cxd6 {[%clk 0:01:48.9]} 18. bxa5 {[%clk 0:01:39.4]}
18... Ba6 {[%clk 0:01:45.1]} 19. Qd2 {[%clk 0:01:29.6]} 19... Bxf1 {[%clk
0:01:46]} 20. Rxf1 {[%clk 0:01:29.5]} 20... bxa5 {[%clk 0:01:43.1]} 21. Bxa5
{[%clk 0:01:27.4]} 21... Qd7 {[%clk 0:01:40]} 22. Rc1 {[%clk 0:01:13.2]} 22...
Rec8 {[%clk 0:01:36.1]} 23. Rxc8+ {[%clk 0:00:53.4]} 23... Rxc8 {[%clk
0:01:29.5]} 24. Bb4 {[%clk 0:00:53.3]} 24... Rc4 {[%clk 0:01:21.7]} 25. Qe1
{[%clk 0:00:20.1]} 25... Nc8 {[%clk 0:01:15.1]} 26. a3 {[%clk 0:00:19.1]} 26...
Qc7 {[%clk 0:01:10.6]} 27. Nfd2 {[%clk 0:00:18.7]} 27... Rc2 {[%clk 0:01:09.3]}
28. h3 {[%clk 0:00:18.7]} 28... Nb6 {[%clk 0:01:08]} 29. Qe3 {[%clk 0:00:18.5]}
29... Nc4 {[%clk 0:01:06]} 30. Nxc4 {[%clk 0:00:18.9]} 30... Qxc4 {[%clk
0:01:06]} 31. Na5 {[%clk 0:00:19.3]} 31... Rc1+ {[%clk 0:01:01]} 32. Kh2 {[%clk
0:00:19.2]} 32... Qf1 {[%clk 0:01:01.6]} 33. Bxd6 {[%clk 0:00:15.8]} 33... Qh1+
{[%clk 0:01:00.6]} 34. Kg3 {[%clk 0:00:16.4]} 34... Rg1 {[%clk 0:01:01.3]} 35.
Qf3 {[%clk 0:00:16.3]} 35... h5 {[%clk 0:01:01.6]} 36. Nc6 {[%clk 0:00:13.5]}
36... h4+ {[%clk 0:01:01.3]} 37. Kxh4 {[%clk 0:00:14]} 37... Rxg2 {[%clk
0:00:59.3]} 38. Ne7+ {[%clk 0:00:11.4]} 38... Kh7 {[%clk 0:00:53.2]} 39. a4
{[%clk 0:00:09.9]} 39... Bh6 {[%clk 0:00:53]} 40. Qxf6 {[%clk 0:00:05.3]} 40...
Bg5+ {[%clk 0:00:50.7]} 41. Qxg5 {[%clk 0:00:05.9]} 41... Rxg5 {[%clk
0:00:51.6]} 42. Kxg5 {[%clk 0:00:06.8]} 42... Qxe4 {[%clk 0:00:51.2]} 43. Kf6
{[%clk 0:00:06.5]} 43... Qxa4 {[%clk 0:00:50.7]} 44. Kxe5 {[%clk 0:00:05.7]}
44... Qa1+ {[%clk 0:00:49.1]} 45. Ke6 {[%clk 0:00:05.6]} 45... Qe1+ {[%clk
0:00:40.3]} 46. Be5 {[%clk 0:00:06.1]} 46... Qf1 {[%clk 0:00:29.8]} 47. d6
{[%clk 0:00:05.2]} 47... Qxh3+ {[%clk 0:00:30.3]} 48. Kf7 {[%clk 0:00:04.7]}
48... Qd7 {[%clk 0:00:28.3]} 49. f4 {[%clk 0:00:03.3]} 49... Kh6 {[%clk
0:00:23.8]} 50. Kf6 {[%clk 0:00:03.5]} 50... Qe8 {[%clk 0:00:18.6]} 51. Ke6
{[%clk 0:00:03.4]} 51... Qd8 {[%clk 0:00:08.3]} 52. d7 {[%clk 0:00:03.4]} 52...
g5 {[%clk 0:00:09.2]} 53. Nc6 {[%clk 0:00:02.4]} 53... Qb6 {[%clk 0:00:07.1]}
0-1

[Event "Early-Titled-Tuesday-Blitz-January-23-2024"]
[Site "Chess.com"]
[Date "2024.01.23"]
[Round "1"]
[White "guillembaches"]
[Black "mishanick"]
[Result "0-1"]
[WhiteElo "2529"]
[BlackElo "3068"]
[TimeControl "180+1"]
[EndTime "8:08:17 PST"]
[Termination "mishanick won on time"]

1. d4 {[%clk 0:03:00.9]} 1... Nf6 {[%clk 0:02:59.6]} 2. Nf3 {[%clk 0:02:58.3]}
2... d5 {[%clk 0:02:59.4]} 3. Bg5 {[%clk 0:02:57.3]} 3... c5 {[%clk 0:02:56.6]}
4. e3 {[%clk 0:02:57.2]} 4... e6 {[%clk 0:02:55.1]} 5. c3 {[%clk 0:02:57.2]}
5... Be7 {[%clk 0:02:52.3]} 6. Nbd2 {[%clk 0:02:57.3]} 6... Nc6 {[%clk
0:02:51.8]} 7. Bd3 {[%clk 0:02:57.5]} 7... O-O {[%clk 0:02:50.7]} 8. O-O {[%clk
0:02:57.6]} 8... h6 {[%clk 0:02:50.6]} 9. Bh4 {[%clk 0:02:57.5]} 9... b6 {[%clk
0:02:50.3]} 10. Ne5 {[%clk 0:02:57.7]} 10... Nxe5 {[%clk 0:02:33.8]} 11. dxe5
{[%clk 0:02:58.6]} 11... Nd7 {[%clk 0:02:34.1]} 12. Bxe7 {[%clk 0:02:58.5]}
12... Qxe7 {[%clk 0:02:34.3]} 13. f4 {[%clk 0:02:59.1]} 13... f6 {[%clk
0:02:34]} 14. exf6 {[%clk 0:02:59]} 14... Nxf6 {[%clk 0:02:33.3]} 15. Nf3 {[%clk
0:02:58.7]} 15... Ng4 {[%clk 0:02:26.3]} 16. Qd2 {[%clk 0:02:19.9]} 16... e5
{[%clk 0:02:19.8]} 17. Bc2 {[%clk 0:02:09.5]} 17... Bb7 {[%clk 0:01:48]} 18. h3
{[%clk 0:02:06.3]} 18... e4 {[%clk 0:01:48.5]} 19. hxg4 {[%clk 0:01:58]} 19...
exf3 {[%clk 0:01:48.5]} 20. gxf3 {[%clk 0:01:53.9]} 20... Rae8 {[%clk
0:01:29.6]} 21. Rae1 {[%clk 0:01:51.8]} 21... Qh4 {[%clk 0:01:11.9]} 22. Qh2
{[%clk 0:01:42.2]} 22... Qf6 {[%clk 0:00:53.7]} 23. Qd2 {[%clk 0:01:33.7]} 23...
Re7 {[%clk 0:00:48.4]} 24. Qd3 {[%clk 0:01:27.2]} 24... Rfe8 {[%clk 0:00:46.9]}
25. Kg2 {[%clk 0:01:13]} 25... Kf7 {[%clk 0:00:42.1]} 26. Rf2 {[%clk 0:01:04]}
26... g6 {[%clk 0:00:29.1]} 27. Rfe2 {[%clk 0:00:55.4]} 27... Kg7 {[%clk
0:00:29.3]} 28. f5 {[%clk 0:00:49.9]} 28... g5 {[%clk 0:00:25.1]} 29. Qd2 {[%clk
0:00:39.2]} 29... Qe5 {[%clk 0:00:21.9]} 30. e4 {[%clk 0:00:32.7]} 30... a5
{[%clk 0:00:16.6]} 31. b3 {[%clk 0:00:14.5]} 31... a4 {[%clk 0:00:15.2]} 32. Bd3
{[%clk 0:00:13.9]} 32... d4 {[%clk 0:00:12.1]} 33. c4 {[%clk 0:00:11.9]} 33...
axb3 {[%clk 0:00:11.7]} 34. axb3 {[%clk 0:00:11.5]} 34... Ra8 {[%clk 0:00:12.4]}
35. Rh1 {[%clk 0:00:11.2]} 35... Ree8 {[%clk 0:00:11.1]} 36. Qe1 {[%clk
0:00:10.8]} 36... Ra3 {[%clk 0:00:10.7]} 37. Bc2 {[%clk 0:00:10.5]} 37... Ra2
{[%clk 0:00:10.2]} 38. Qg1 {[%clk 0:00:09.9]} 38... Rd8 {[%clk 0:00:08]} 39. Bd3
{[%clk 0:00:10]} 39... Rxe2+ {[%clk 0:00:07.5]} 40. Bxe2 {[%clk 0:00:10.1]}
40... d3 {[%clk 0:00:08.2]} 41. Bd1 {[%clk 0:00:10.4]} 41... d2 {[%clk 0:00:08]}
42. Qh2 {[%clk 0:00:10.8]} 42... Qxh2+ {[%clk 0:00:04.3]} 43. Rxh2 {[%clk
0:00:11.1]} 43... Ra8 {[%clk 0:00:05.1]} 44. Kf2 {[%clk 0:00:11.2]} 44... Ra1
{[%clk 0:00:04.9]} 45. Ke2 {[%clk 0:00:10.7]} 45... Ba6 {[%clk 0:00:05.3]} 46.
Kxd2 {[%clk 0:00:10.4]} 46... b5 {[%clk 0:00:06.1]} 47. Rf2 {[%clk 0:00:09.5]}
47... bxc4 {[%clk 0:00:06.1]} 48. bxc4 {[%clk 0:00:09.8]} 48... Bxc4 {[%clk
0:00:06.8]} 49. Bc2 {[%clk 0:00:10]} 49... Ra3 {[%clk 0:00:06.6]} 50. e5 {[%clk
0:00:08.5]} 50... Bd5 {[%clk 0:00:06.5]} 51. f6+ {[%clk 0:00:08.2]} 51... Kf7
{[%clk 0:00:06.7]} 52. Be4 {[%clk 0:00:08.1]} 52... Be6 {[%clk 0:00:02.8]} 53.
Bf5 {[%clk 0:00:07.5]} 53... Bxf5 {[%clk 0:00:02.5]} 54. gxf5 {[%clk 0:00:06.9]}
54... Ra2+ {[%clk 0:00:03.1]} 55. Ke3 {[%clk 0:00:06.9]} 55... Rxf2 {[%clk
0:00:03.8]} 56. Kxf2 {[%clk 0:00:07.5]} 56... h5 {[%clk 0:00:04.2]} 0-1

[Event "Early-Titled-Tuesday-Blitz-January-23-2024"]
[Site "Chess.com"]
[Date "2024.01.23"]
[Round "1"]
[White "rionelG"]
[Black "eagleclaw07"]
[Result "0-1"]
[WhiteElo "2321"]
[BlackElo "2641"]
[TimeControl "180+1"]
[EndTime "8:08:18 PST"]
[Termination "eagleclaw07 won on time"]

1. e4 {[%clk 0:03:00.9]} 1... e5 {[%clk 0:02:59.2]} 2. Nf3 {[%clk 0:03:01.2]}
2... Nc6 {[%clk 0:02:59.7]} 3. Bb5 {[%clk 0:02:58.8]} 3... Nf6 {[%clk
0:03:00.3]} 4. O-O {[%clk 0:02:57.9]} 4... Nxe4 {[%clk 0:02:58.7]} 5. d4 {[%clk
0:02:57.4]} 5... Nd6 {[%clk 0:02:58.4]} 6. dxe5 {[%clk 0:02:57.7]} 6... Nxb5
{[%clk 0:02:58.4]} 7. a4 {[%clk 0:02:58]} 7... Nbd4 {[%clk 0:02:58]} 8. Nxd4
{[%clk 0:02:57.9]} 8... Nxd4 {[%clk 0:02:57.7]} 9. Qxd4 {[%clk 0:02:58.6]} 9...
d6 {[%clk 0:02:56.3]} 10. exd6 {[%clk 0:02:59.3]} 10... Qxd6 {[%clk 0:02:54.9]}
11. Qe4+ {[%clk 0:02:59.6]} 11... Qe6 {[%clk 0:02:55.4]} 12. Qd4 {[%clk
0:02:59.7]} 12... Qd6 {[%clk 0:02:45.1]} 13. Qe4+ {[%clk 0:02:59.3]} 13... Be7
{[%clk 0:02:44]} 14. Bf4 {[%clk 0:02:48.2]} 14... Qe6 {[%clk 0:02:43.1]} 15.
Qxe6 {[%clk 0:02:44.8]} 15... Bxe6 {[%clk 0:02:44]} 16. Bxc7 {[%clk 0:02:45]}
16... Rc8 {[%clk 0:02:39.9]} 17. Be5 {[%clk 0:02:45.4]} 17... Rxc2 {[%clk
0:02:37.8]} 18. Na3 {[%clk 0:02:30.2]} 18... Re2 {[%clk 0:02:33.6]} 19. Bxg7
{[%clk 0:02:10]} 19... Rg8 {[%clk 0:02:32.9]} 20. Bd4 {[%clk 0:02:09.1]} 20...
Bh3 {[%clk 0:02:24.7]} 21. Rfe1 {[%clk 0:01:44.8]} 21... Rxe1+ {[%clk
0:01:25.3]} 22. Rxe1 {[%clk 0:01:45.7]} 22... Bxg2 {[%clk 0:01:25.9]} 23. Re3
{[%clk 0:00:50.5]} 23... Kd7 {[%clk 0:01:01.4]} 24. Rg3 {[%clk 0:00:47.9]} 24...
Rxg3 {[%clk 0:01:01.7]} 25. hxg3 {[%clk 0:00:48.8]} 25... Bc6 {[%clk 0:01:01.9]}
26. Bxa7 {[%clk 0:00:45.1]} 26... Bxa4 {[%clk 0:01:02.4]} 27. Bd4 {[%clk
0:00:40.7]} 27... b5 {[%clk 0:00:58.8]} 28. f3 {[%clk 0:00:27.4]} 28... b4
{[%clk 0:00:57.8]} 29. Nc4 {[%clk 0:00:26.5]} 29... Kc6 {[%clk 0:00:57.4]} 30.
Bh8 {[%clk 0:00:14.3]} 30... f6 {[%clk 0:00:50.5]} 31. Kf2 {[%clk 0:00:09.2]}
31... Bb5 {[%clk 0:00:49.9]} 32. Ne3 {[%clk 0:00:07.3]} 32... b3 {[%clk
0:00:48.2]} 33. Ng4 {[%clk 0:00:05.9]} 33... f5 {[%clk 0:00:42.6]} 34. Nh6
{[%clk 0:00:05.5]} 34... Bc5+ {[%clk 0:00:36]} 35. Kg2 {[%clk 0:00:05.6]} 35...
Bd3 {[%clk 0:00:35.9]} 36. g4 {[%clk 0:00:04.4]} 36... f4 {[%clk 0:00:33]} 37.
Nf7 {[%clk 0:00:02.3]} 37... Kd5 {[%clk 0:00:32.1]} 38. Ng5 {[%clk 0:00:02.4]}
38... Be7 {[%clk 0:00:30]} 39. Nh3 {[%clk 0:00:01.5]} 39... Bd6 {[%clk 0:00:30]}
40. Nf2 {[%clk 0:00:01.8]} 40... Bc2 {[%clk 0:00:29.4]} 41. Bc3 {[%clk
0:00:02.2]} 41... Be5 {[%clk 0:00:28.2]} 42. Bxe5 {[%clk 0:00:01.5]} 42... Kxe5
{[%clk 0:00:29.1]} 43. Kf1 {[%clk 0:00:02.1]} 43... Kd4 {[%clk 0:00:28.6]} 44.
Ke2 {[%clk 0:00:02.7]} 44... Bg6 {[%clk 0:00:24.4]} 45. Nh3 {[%clk 0:00:03.3]}
45... Ke5 {[%clk 0:00:24.2]} 46. Nf2 {[%clk 0:00:02.7]} 46... Kd4 {[%clk
0:00:19]} 47. Nh3 {[%clk 0:00:02.7]} 47... Ke5 {[%clk 0:00:12.3]} 48. Nf2 {[%clk
0:00:03.2]} 48... h5 {[%clk 0:00:13]} 49. gxh5 {[%clk 0:00:02.1]} 49... Bxh5
{[%clk 0:00:13.1]} 50. Nd3+ {[%clk 0:00:03]} 50... Kf5 {[%clk 0:00:13.1]} 51.
Nc1 {[%clk 0:00:03.2]} 51... Bf7 {[%clk 0:00:13.5]} 52. Nd3 {[%clk 0:00:03.3]}
52... Bc4 {[%clk 0:00:12.1]} 53. Kd2 {[%clk 0:00:03.5]} 53... Kg5 {[%clk
0:00:11.1]} 54. Ne5 {[%clk 0:00:03.2]} 54... Bd5 {[%clk 0:00:10.9]} 55. Kc3
{[%clk 0:00:02]} 55... Kf5 {[%clk 0:00:11.3]} 56. Kd4 {[%clk 0:00:02.2]} 56...
Bb7 {[%clk 0:00:11.1]} 0-1

[Event "Early-Titled-Tuesday-Blitz-January-23-2024"]
[Site "Chess.com"]
[Date "2024.01.23"]
[Round "1"]
[White "dhammiko"]
[Black "Squirlolz"]
[Result "0-1"]
[WhiteElo "2163"]
[BlackElo "2571"]
[TimeControl "180+1"]
[EndTime "8:08:18 PST"]
[Termination "Squirlolz won by resignation"]

1. e4 {[%clk 0:03:00.8]} 1... d6 {[%clk 0:02:56.1]} 2. d4 {[%clk 0:02:59.6]}
2... Nf6 {[%clk 0:02:56.1]} 3. Nc3 {[%clk 0:02:58.5]} 3... c6 {[%clk 0:02:49.6]}
4. Nf3 {[%clk 0:02:56.8]} 4... Bg4 {[%clk 0:02:48.7]} 5. Be2 {[%clk 0:02:54.7]}
5... e6 {[%clk 0:02:48.8]} 6. O-O {[%clk 0:02:54]} 6... Be7 {[%clk 0:02:48.3]}
7. e5 {[%clk 0:02:52.5]} 7... Nd5 {[%clk 0:02:30.3]} 8. Ne4 {[%clk 0:02:45.3]}
8... dxe5 {[%clk 0:02:30.3]} 9. Nxe5 {[%clk 0:02:42.9]} 9... Bxe2 {[%clk
0:02:31.2]} 10. Qxe2 {[%clk 0:02:42.5]} 10... O-O {[%clk 0:02:30.1]} 11. c4
{[%clk 0:02:29.9]} 11... Nf6 {[%clk 0:02:29.5]} 12. Rd1 {[%clk 0:02:29.5]} 12...
Nbd7 {[%clk 0:02:28.4]} 13. Bf4 {[%clk 0:02:23.9]} 13... Nxe4 {[%clk 0:02:20.6]}
14. Qxe4 {[%clk 0:02:22.1]} 14... Nxe5 {[%clk 0:02:20.7]} 15. dxe5 {[%clk
0:02:21]} 15... Qb6 {[%clk 0:02:16.9]} 16. Qc2 {[%clk 0:01:47.4]} 16... Rfd8
{[%clk 0:02:15]} 17. a3 {[%clk 0:01:42.8]} 17... a5 {[%clk 0:02:10.3]} 18. Rac1
{[%clk 0:01:01.3]} 18... Bc5 {[%clk 0:02:06.1]} 19. Bg5 {[%clk 0:00:56.4]} 19...
Rxd1+ {[%clk 0:02:02.8]} 20. Rxd1 {[%clk 0:00:56.2]} 20... h6 {[%clk 0:02:03.4]}
21. Bh4 {[%clk 0:00:52.1]} 21... Bd4 {[%clk 0:01:59.2]} 22. b3 {[%clk
0:00:50.5]} 22... Bxe5 {[%clk 0:01:57.1]} 23. Rd7 {[%clk 0:00:47.7]} 23... g5
{[%clk 0:01:43.2]} 24. c5 {[%clk 0:00:33.1]} 24... Qb5 {[%clk 0:01:24.1]} 25.
Bg3 {[%clk 0:00:32.8]} 25... Bg7 {[%clk 0:01:20.3]} 26. Bc7 {[%clk 0:00:29.9]}
26... a4 {[%clk 0:01:03.5]} 27. b4 {[%clk 0:00:29.7]} 27... Re8 {[%clk
0:01:04.1]} 28. Bb6 {[%clk 0:00:28.5]} 28... Qa6 {[%clk 0:00:52]} 29. Qd1 {[%clk
0:00:24.6]} 29... e5 {[%clk 0:00:39.2]} 30. Qf3 {[%clk 0:00:21.8]} 30... Qc4
{[%clk 0:00:37.2]} 31. h3 {[%clk 0:00:20.4]} 31... e4 {[%clk 0:00:36.5]} 32. Qf5
{[%clk 0:00:20.5]} 32... e3 {[%clk 0:00:29.3]} 33. fxe3 {[%clk 0:00:20.5]} 33...
Qc1+ {[%clk 0:00:28.5]} 34. Kh2 {[%clk 0:00:20.4]} 34... Be5+ {[%clk 0:00:29]}
35. g3 {[%clk 0:00:18]} 35... Qb2+ {[%clk 0:00:24.6]} 36. Kg1 {[%clk 0:00:16.9]}
36... Qa1+ {[%clk 0:00:24.8]} 37. Kg2 {[%clk 0:00:17.3]} 37... Qa2+ {[%clk
0:00:25.3]} 38. Kf3 {[%clk 0:00:16.3]} 38... Bg7 {[%clk 0:00:14.5]} 39. Rxb7
{[%clk 0:00:15.8]} 39... Qc4 {[%clk 0:00:11.8]} 40. Kf2 {[%clk 0:00:13.2]} 40...
Qb3 {[%clk 0:00:08.5]} 41. Rd7 {[%clk 0:00:11.6]} 41... Qxe3+ {[%clk 0:00:08]}
42. Kg2 {[%clk 0:00:10.8]} 42... Qe2+ {[%clk 0:00:08.4]} 43. Qf2 {[%clk
0:00:09.8]} 43... Qe4+ {[%clk 0:00:08.7]} 44. Qf3 {[%clk 0:00:10.3]} 44... Qc2+
{[%clk 0:00:08.8]} 45. Kg1 {[%clk 0:00:09.7]} 45... Re1+ {[%clk 0:00:08.4]} 46.
Qf1 {[%clk 0:00:10]} 46... Rxf1+ {[%clk 0:00:08.4]} 47. Kxf1 {[%clk 0:00:10.9]}
47... Qc1+ {[%clk 0:00:08.1]} 48. Kf2 {[%clk 0:00:11.2]} 48... Qb2+ {[%clk
0:00:08]} 49. Ke3 {[%clk 0:00:09.9]} 49... Qxa3+ {[%clk 0:00:08.9]} 50. Rd3
{[%clk 0:00:09.7]} 50... Qxb4 {[%clk 0:00:09]} 51. Rd8+ {[%clk 0:00:09.4]} 51...
Kh7 {[%clk 0:00:08.8]} 52. Rd3 {[%clk 0:00:09.6]} 52... a3 {[%clk 0:00:09.1]}
53. Bc7 {[%clk 0:00:08.5]} 53... a2 {[%clk 0:00:09.3]} 0-1